bitfinex/quotes_BTCUSD_20230120
["timestamp","ask_amount","ask_price","bid_price","bid_amount"]
[1674220234631,0.311607,21121.0,21120.0,0.00569545]
[1674220234881,1.258531,21121.0,21120.0,0.00569545]
[1674220235129,1.275689,21121.0,21120.0,0.08469545]
[1674220235375,0.328765,21121.0,21120.0,0.08469545]
[1674220235632,0.91181011,21122.0,21120.0,0.08469545]
[1674220235868,1.38525011,21122.0,21120.0,0.08469545]
[1674220236134,1.38525011,21122.0,21120.0,0.00569545]
[1674220236372,0.311111,21121.0,21120.0,0.00569545]
[1674220236622,0.73264153,21121.0,21120.0,0.08469545]
[1674220236872,1.37055115,21121.0,21120.0,0.08469545]
[1674220237118,1.67850008,21121.0,21120.0,0.08469545]
[1674220237365,1.97578902,21121.0,21120.0,0.00569545]
[1674220237612,2.31996013,21121.0,21120.0,0.00569545]
[1674220237900,2.33396013,21121.0,21120.0,0.00669545]
[1674220238136,2.32928818,21121.0,21120.0,0.00569545]
[1674220238390,1.97578902,21121.0,21120.0,0.00569545]
[1674220239386,1.98978902,21121.0,21120.0,0.01269545]
[1674220239652,1.98978902,21121.0,21120.0,0.00569545]
[1674220239653,2.36011538,21121.0,21120.0,0.00569545]
[1674220239900,2.40008902,21121.0,21120.0,0.01269545]
[1674220240153,2.39272527,21121.0,21120.0,0.01269545]
[1674220240402,2.35662754,21121.0,21120.0,0.00569545]
[1674220241400,2.29462754,21121.0,21120.0,0.01269545]
[1674220242133,2.28062754,21121.0,21120.0,0.00569545]
[1674220242376,2.29462754,21121.0,21120.0,0.01269545]
[1674220242877,1.8473734,21121.0,21120.0,0.00269545]
[1674220243133,1.6973734,21121.0,21120.0,0.00269545]
[1674220243666,1.61905456,21121.0,21120.0,0.00269545]
[1674220243949,1.54325456,21121.0,21120.0,0.00269545]
[1674220244173,1.06968785,21121.0,21120.0,0.00269545]
[1674220244417,0.67454469,21121.0,21120.0,0.09664545]
[1674220244683,0.36343369,21121.0,21120.0,0.09664545]
[1674220245204,0.36343369,21121.0,21119.0,0.29463146]
[1674220245683,0.34943369,21121.0,21119.0,0.29463146]
[1674220245933,0.36943369,21121.0,21120.0,0.152]
[1674220246180,0.36943369,21121.0,21120.0,0.331008]
[1674220246181,0.34943369,21121.0,21120.0,0.331008]
[1674220246460,0.35043369,21121.0,21120.0,0.15]
[1674220246729,0.34943369,21121.0,21120.0,0.474522]
[1674220246942,0.36943369,21121.0,21120.0,0.476522]
[1674220248259,0.3695384,21121.0,21120.0,0.326522]
[1674220248513,0.3695384,21121.0,21120.0,0.002]
[1674220249513,1.51078337,21121.0,21120.0,0.002]
[1674220249765,2.0130444,21121.0,21120.0,0.002]
[1674220250364,1.9930444,21121.0,21118.0,0.00462341]
[1674220250550,1.50978337,21121.0,21120.0,0.006]
[1674220250813,1.6145344,21121.0,21120.0,0.006]
[1674220251066,1.89331574,21121.0,21120.0,0.006]
[1674220251342,1.5955344,21121.0,21118.0,0.00462341]
[1674220251584,0.457735,21120.0,21118.0,0.00462341]
[1674220251838,1.259717,21119.0,21118.0,0.00462341]
[1674220252329,0.15,21118.0,21117.0,0.00089444]
[1674220252578,0.950289,21118.0,21117.0,0.00089444]
[1674220253580,0.950289,21118.0,21113.0,1.38908286]
[1674220253847,0.19432097,21117.0,21113.0,1.46498286]
[1674220254103,1.06178078,21118.0,21113.0,1.46498286]
[1674220254377,0.33142057,21117.0,21113.0,1.65930383]
[1674220254591,0.52574154,21117.0,21114.0,0.3]
[1674220254840,0.33142057,21117.0,21113.0,1.46498086]
[1674220255095,0.52774154,21117.0,21113.0,1.53798086]
[1674220255344,0.52774154,21117.0,21113.0,1.09898086]
[1674220255589,0.67774154,21117.0,21113.0,1.09898086]
[1674220255846,0.00010471,21116.0,21113.0,1.09898086]
[1674220256097,0.00010471,21116.0,21114.0,0.15]
[1674220256362,0.00046782,21116.0,21114.0,0.947232]
[1674220256870,0.4293362,21116.0,21114.0,0.473613]
[1674220257112,0.42944091,21116.0,21113.0,0.77535586]
[1674220257359,0.42944091,21116.0,21113.0,1.17599686]
[1674220257606,0.00246782,21116.0,21115.0,0.15]
[1674220257857,0.00246782,21116.0,21115.0,0.194735]
[1674220258378,0.00057253,21116.0,21113.0,0.70235686]
[1674220258629,0.41860928,21116.0,21115.0,0.033]
[1674220258872,0.41850457,21116.0,21115.0,0.033]
[1674220261109,0.41860928,21116.0,21115.0,0.033]
[1674220261357,0.41850457,21116.0,21115.0,0.033]
[1674220261851,0.43377092,21116.0,21115.0,0.033]
[1674220263379,0.43387563,21116.0,21115.0,0.033]
[1674220265426,1.38102363,21116.0,21115.0,0.033]
[1674220265594,0.74907592,21116.0,21115.0,0.033]
[1674220265855,0.43838802,21116.0,21115.0,0.033]
[1674220267148,0.43849273,21116.0,21115.0,0.033]
[1674220267675,0.43838802,21116.0,21115.0,0.033]
[1674220273757,0.74086602,21116.0,21115.0,0.033]
[1674220274997,0.43838802,21116.0,21115.0,0.033]
[1674220278263,0.74763602,21116.0,21115.0,0.033]
[1674220278508,0.74774073,21116.0,21115.0,0.033]
[1674220279252,0.74763602,21116.0,21115.0,0.033]
[1674220279517,0.74774073,21116.0,21115.0,0.033]
[1674220280295,0.53018855,21116.0,21115.0,0.033]
[1674220280580,1.42785198,21116.0,21115.0,0.03289961]
[1674220281515,1.79873462,21116.0,21115.0,0.03289961]
[1674220282540,1.42785198,21116.0,21115.0,0.03289961]
[1674220282775,1.79852251,21116.0,21115.0,0.03289961]
[1674220283023,1.64852251,21116.0,21115.0,0.03289961]
[1674220283267,0.33059927,21116.0,21115.0,0.03289961]
[1674220283518,0.02135127,21116.0,21115.0,0.03289961]
[1674220285511,0.02135127,21116.0,21115.0,0.50649561]
[1674220285758,0.02135127,21116.0,21115.0,0.03289961]
[1674220286744,0.02145598,21116.0,21115.0,0.03289961]
[1674220287238,0.41873707,21116.0,21115.0,0.03289961]
[1674220287492,1.47607277,21116.0,21115.0,0.03289961]
[1674220287731,1.81837377,21116.0,21115.0,0.03289961]
[1674220288033,1.70808136,21116.0,21115.0,0.03289961]
[1674220288337,1.31080027,21116.0,21115.0,0.03289961]
[1674220288567,0.36572364,21116.0,21115.0,0.03289961]
[1674220289355,0.02135127,21116.0,21115.0,0.03289961]
[1674220289603,0.02135127,21116.0,21115.0,0.36850061]
[1674220290092,0.02135127,21116.0,21115.0,0.03289961]
[1674220291301,0.02145598,21116.0,21115.0,0.03289961]
[1674220291558,0.02135127,21116.0,21115.0,0.03289961]
[1674220294320,0.02135127,21116.0,21115.0,0.50649561]
[1674220294574,0.02135127,21116.0,21115.0,0.6180094]
[1674220294865,0.02135127,21116.0,21115.0,0.1444134]
[1674220295112,0.02135127,21116.0,21115.0,0.2944134]
[1674220295574,0.02135127,21116.0,21115.0,0.1444134]
[1674220296071,0.02135127,21116.0,21115.0,0.50649561]
[1674220296289,0.02135127,21116.0,21115.0,0.6180094]
[1674220296790,0.0190696,21116.0,21115.0,2.52207526]
[1674220297046,0.0190696,21116.0,21115.0,2.4768431]
[1674220297304,0.01948505,21116.0,21115.0,2.53057526]
[1674220301666,0.01936098,21116.0,21115.0,2.53057526]
[1674220302194,0.01936098,21116.0,21115.0,2.75558996]
[1674220302707,0.01936098,21116.0,21115.0,2.19768383]
[1674220302963,0.01936098,21116.0,21115.0,2.36646492]
[1674220304211,0.40819818,21116.0,21115.0,0.84477259]
[1674220304478,0.40819818,21116.0,21115.0,0.51718759]
[1674220304479,0.01936098,21116.0,21115.0,0.51718759]
[1674220305017,0.01936098,21116.0,21115.0,1.07660177]
[1674220305283,0.01936098,21116.0,21115.0,1.40452277]
[1674220305547,0.01936098,21116.0,21115.0,0.96406923]
[1674220305820,0.01936098,21116.0,21115.0,0.51718651]
[1674220306083,0.01936098,21116.0,21115.0,0.34840542]
[1674220306351,0.01936098,21116.0,21115.0,1.94328045]
[1674220306612,0.443,21120.0,21116.0,0.18164142]
[1674220306880,0.3345,21121.0,21119.0,0.46979954]
[1674220307192,0.3345,21121.0,21120.0,1.85803457]
[1674220307492,0.85117041,21123.0,21120.0,1.6722136]
[1674220307766,0.85117041,21123.0,21121.0,0.47358971]
[1674220308029,0.40057512,21123.0,21122.0,0.304251]
[1674220308294,0.40047041,21123.0,21122.0,0.304251]
[1674220308573,0.40047041,21123.0,21122.0,0.331992]
[1674220308834,0.40047041,21123.0,21121.0,1.05934571]
[1674220309096,0.40047041,21123.0,21121.0,0.78097608]
[1674220309359,0.03029548,21123.0,21122.0,0.72765]
[1674220309628,0.00029548,21123.0,21122.0,0.87265]
[1674220309886,0.00029548,21123.0,21122.0,0.72265]
[1674220310129,0.00029548,21123.0,21122.0,0.09395]
[1674220310375,0.36305624,21124.0,21122.0,0.15]
[1674220310640,0.36305624,21124.0,21121.0,0.78097608]
[1674220310942,0.01559408,21123.0,21121.0,0.78097608]
[1674220311153,0.01559408,21123.0,21122.0,0.621191]
[1674220311434,0.01559408,21123.0,21122.0,0.327191]
[1674220311678,0.01559408,21123.0,21121.0,1.05934771]
[1674220311933,0.01759408,21123.0,21121.0,1.008905]
[1674220312192,0.01559408,21123.0,21122.0,0.31709522]
[1674220312457,0.38686879,21123.0,21122.0,0.006]
[1674220312724,0.38686879,21123.0,21120.0,0.67060971]
[1674220312978,0.38876408,21123.0,21121.0,0.062]
[1674220313257,0.38676408,21123.0,21120.0,1.14409171]
[1674220313588,0.4666807,21122.0,21120.0,0.481965]
[1674220313772,0.4666807,21122.0,21119.0,0.58592871]
[1674220314051,0.4666807,21122.0,21119.0,0.75462299]
[1674220314309,0.4666807,21122.0,21119.0,0.58592871]
[1674220314564,0.4666807,21122.0,21121.0,0.062]
[1674220315085,0.4666807,21122.0,21120.0,0.473479]
[1674220315385,0.4696807,21122.0,21120.0,0.473479]
[1674220315633,0.4666807,21122.0,21119.0,0.75462299]
[1674220315899,0.4686807,21122.0,21121.0,0.062]
[1674220316166,0.45511825,21121.0,21119.0,0.11244271]
[1674220316425,0.45511825,21121.0,21120.0,0.062]
[1674220317571,0.45539094,21121.0,21120.0,0.062]
[1674220317572,0.45539094,21121.0,21117.0,0.473531]
[1674220317830,0.15,21120.0,21119.0,0.062]
[1674220318086,0.15,21120.0,21117.0,0.473531]
[1674220318352,0.93185794,21121.0,21120.0,0.062]
[1674220318619,0.93185794,21121.0,21117.0,0.41244271]
[1674220319049,0.003,21120.0,21119.0,0.062]
[1674220319338,0.00010471,21120.0,21117.0,0.3]
[1674220319607,0.93185794,21121.0,21120.0,0.057]
[1674220319873,1.08185794,21121.0,21120.0,0.057]
[1674220320408,0.92896265,21121.0,21116.0,1.49836796]
[1674220320683,1.12628362,21121.0,21117.0,0.357]
[1674220320943,1.12628362,21121.0,21116.0,1.13537471]
[1674220321204,1.12628362,21121.0,21120.0,0.057]
[1674220321472,1.40242465,21121.0,21116.0,0.81180071]
[1674220321715,1.59974562,21121.0,21116.0,1.23181596]
[1674220321975,1.59974562,21121.0,21117.0,0.11244271]
[1674220322204,0.93195765,21121.0,21117.0,0.11244271]
[1674220322738,0.36632953,21120.0,21117.0,0.88599071]
[1674220323000,0.38181147,21120.0,21117.0,0.58599071]
[1674220323531,0.38181147,21120.0,21117.0,0.473548]
[1674220323532,0.00027159,21119.0,21117.0,0.473548]
[1674220323803,0.00010471,21118.0,21117.0,0.057]
[1674220324101,0.32733671,21118.0,21117.0,0.057]
[1674220324341,0.00010471,21118.0,21117.0,0.057]
[1674220324618,0.29722568,21118.0,21113.0,0.75760585]
[1674220324895,0.51129697,21117.0,21113.0,0.47646886]
[1674220325147,0.91669066,21116.0,21113.0,0.47646886]
[1674220325442,0.58215666,21116.0,21113.0,0.47646886]
[1674220325706,0.38783569,21116.0,21113.0,0.00283386]
[1674220326955,0.39083569,21116.0,21113.0,0.05983386]
[1674220327239,0.01331461,21115.0,21113.0,0.05983386]
[1674220327482,0.01341932,21115.0,21113.0,0.05983386]
[1674220328013,0.45677534,21115.0,21113.0,0.00283386]
[1674220328527,0.45977534,21115.0,21113.0,0.05983386]
[1674220329548,0.00028252,21114.0,21113.0,0.05983386]
[1674220330590,0.45007215,21114.0,21113.0,0.05983386]
[1674220330839,0.45007215,21114.0,21113.0,0.00283386]
[1674220331122,0.01897857,21114.0,21113.0,0.05983386]
[1674220331376,1.08380232,21116.0,21113.0,0.05983386]
[1674220332186,0.01373405,21114.0,21113.0,0.05983386]
[1674220332460,0.01373405,21114.0,21113.0,0.00283386]
[1674220332689,0.01373405,21114.0,21113.0,0.06583386]
[1674220332978,0.01373405,21114.0,21113.0,0.00283386]
[1674220333298,0.01673405,21114.0,21113.0,0.06583386]
[1674220333513,0.01700648,21114.0,21113.0,0.06583386]
[1674220334621,0.01711119,21114.0,21113.0,0.06583386]
[1674220334772,0.41991856,21114.0,21113.0,0.06583386]
[1674220335063,0.01700648,21114.0,21113.0,0.06583386]
[1674220335568,0.01711119,21114.0,21113.0,0.06583386]
[1674220335834,0.01700648,21114.0,21113.0,0.06583386]
[1674220336664,0.01711119,21114.0,21113.0,0.06583386]
[1674220336927,1.1407405,21114.0,21113.0,0.06583386]
[1674220337209,1.4717445,21114.0,21113.0,0.06583386]
[1674220337784,1.3217445,21114.0,21111.0,0.34041079]
[1674220338059,0.9907405,21114.0,21111.0,0.34041079]
[1674220338323,0.99063579,21114.0,21111.0,0.49041079]
[1674220338587,0.98763579,21114.0,21111.0,0.49041079]
[1674220339653,1.47025479,21114.0,21111.0,0.34241079]
[1674220340131,0.42248491,21113.0,21111.0,0.34241079]
[1674220341160,0.01490307,21112.0,21111.0,0.34241079]
[1674220341423,0.01518807,21112.0,21111.0,0.34041079]
[1674220341712,0.01518807,21112.0,21111.0,0.34241079]
[1674220341973,0.01518807,21112.0,21111.0,0.81609679]
[1674220342554,0.01518807,21112.0,21111.0,1.26409679]
[1674220342812,0.02418807,21112.0,21111.0,1.10024279]
[1674220343095,0.02551589,21112.0,21111.0,0.34241079]
[1674220346018,0.35943076,21112.0,21111.0,0.34241079]
[1674220346714,0.67291947,21112.0,21111.0,0.34241079]
[1674220347242,0.35943076,21112.0,21111.0,0.34241079]
[1674220347512,0.67236647,21112.0,21111.0,0.34241079]
[1674220348288,0.67226176,21112.0,21111.0,0.34241079]
[1674220348565,0.35943076,21112.0,21111.0,0.34241079]
[1674220350114,0.70219547,21112.0,21111.0,0.34241079]
[1674220350620,0.84040547,21112.0,21111.0,0.34241079]
[1674220350893,2.11432207,21112.0,21111.0,0.34241079]
[1674220351157,1.64065807,21112.0,21111.0,0.34241079]
[1674220351413,1.29191479,21112.0,21111.0,0.34241079]
[1674220351973,1.28291479,21112.0,21111.0,0.34041079]
[1674220352230,1.29291479,21112.0,21111.0,0.34241079]
[1674220352488,0.80925079,21112.0,21111.0,0.34041079]
[1674220352751,1.37191479,21112.0,21111.0,0.34041079]
[1674220353049,0.80925079,21112.0,21111.0,0.34041079]
[1674220353320,0.80914608,21112.0,21111.0,0.34041079]
[1674220353593,0.10551589,21112.0,21111.0,0.34041079]
[1674220353866,0.01651589,21112.0,21111.0,0.34041079]
[1674220354122,0.10551589,21112.0,21111.0,0.33381079]
[1674220354952,0.10551589,21112.0,21111.0,0.26317655]
[1674220355225,0.10551589,21112.0,21111.0,0.11317655]
[1674220355498,0.10551589,21112.0,21111.0,0.26317655]
[1674220355906,0.01651589,21112.0,21111.0,1.21054855]
[1674220356132,0.05251589,21112.0,21111.0,1.36825355]
[1674220358414,0.05251589,21112.0,21111.0,1.06154855]
[1674220358893,0.05251589,21112.0,21111.0,0.58786255]
[1674220359109,0.66236586,21112.0,21111.0,0.11417655]
[1674220359327,0.46804489,21112.0,21111.0,0.11417655]
[1674220359802,0.43204489,21112.0,21111.0,0.11317655]
[1674220360046,0.83390007,21112.0,21111.0,0.11417655]
[1674220361194,0.09518807,21112.0,21111.0,0.11417655]
[1674220361876,0.09529278,21112.0,21111.0,0.11417655]
[1674220362996,0.09651941,21112.0,21111.0,0.11417655]
[1674220363445,0.60031641,21112.0,21111.0,0.11417655]
[1674220363668,0.77014041,21112.0,21111.0,0.11417655]
[1674220363893,0.45031641,21112.0,21111.0,0.11417655]
[1674220366032,0.62770665,21112.0,21111.0,0.001]
[1674220366222,0.77617641,21112.0,21111.0,0.001]
[1674220366896,0.92617641,21112.0,21111.0,0.001]
[1674220367330,1.39984041,21112.0,21111.0,0.001]
[1674220369869,0.92617641,21112.0,21111.0,0.001]
[1674220370129,0.0964147,21112.0,21111.0,0.001]
[1674220370391,0.0964147,21112.0,21111.0,0.09495]
[1674220371440,0.0964147,21112.0,21111.0,0.001]
[1674220374846,0.09651941,21112.0,21111.0,0.001]
[1674220375119,0.5015882,21112.0,21111.0,0.001]
[1674220379402,0.9515462,21112.0,21111.0,0.001]
[1674220379932,1.4252102,21112.0,21111.0,0.001]
[1674220380945,1.8988742,21112.0,21111.0,0.001]
[1674220382009,1.89764757,21112.0,21111.0,0.001]
[1674220382517,2.18372699,21112.0,21111.0,0.001]
[1674220382796,1.89764757,21112.0,21111.0,0.001]
[1674220384392,1.49257878,21112.0,21111.0,0.001]
[1674220385680,1.9364184,21112.0,21111.0,0.001]
[1674220385969,1.95708401,21112.0,21111.0,0.001]
[1674220388575,1.49257878,21112.0,21111.0,0.001]
[1674220389053,1.81746389,21112.0,21111.0,0.001]
[1674220389352,1.89386389,21112.0,21111.0,0.001]
[1674220389561,0.49131465,21111.0,21106.0,0.00182421]
[1674220389823,0.97049097,21110.0,21106.0,0.01032421]
[1674220390077,0.66803497,21110.0,21106.0,0.01032421]
[1674220390372,0.00022738,21109.0,21106.0,0.01032421]
[1674220390871,0.3889624,21108.0,21106.0,0.01032421]
[1674220391135,0.3889624,21108.0,21106.0,0.01932421]
[1674220391347,0.3889624,21108.0,21106.0,0.01044113]
[1674220391593,0.0233958,21109.0,21106.0,0.01944113]
[1674220391853,0.0153958,21109.0,21107.0,0.321648]
[1674220392103,0.0153958,21109.0,21108.0,0.343945]
[1674220392357,0.0153958,21109.0,21106.0,0.89667184]
[1674220392604,0.45215419,21109.0,21107.0,0.472929]
[1674220392887,0.42898577,21109.0,21108.0,0.192664]
[1674220393145,0.00922738,21109.0,21108.0,0.009]
[1674220393395,0.00022738,21109.0,21107.0,0.15]
[1674220393661,0.39499648,21112.0,21109.0,0.15]
[1674220393903,0.39499648,21112.0,21110.0,0.37951886]
[1674220394155,0.39499648,21112.0,21111.0,0.316156]
[1674220395182,0.39510119,21112.0,21110.0,0.473703]
[1674220395452,0.39510119,21112.0,21109.0,0.473713]
[1674220395453,0.47610119,21112.0,21111.0,0.001]
[1674220397205,0.55019705,21112.0,21111.0,0.001]
[1674220398272,0.47610119,21112.0,21111.0,0.001]
[1674220398471,0.47633972,21112.0,21111.0,0.001]
[1674220400752,0.81772472,21112.0,21111.0,0.001]
[1674220401037,0.96772472,21112.0,21111.0,0.001]
[1674220401332,0.47623501,21112.0,21111.0,0.001]
[1674220405072,0.47633972,21112.0,21111.0,0.001]
[1674220405340,0.47623501,21112.0,21111.0,0.001]
[1674220405610,0.36911869,21111.0,21107.0,1.36776372]
[1674220405877,0.19442568,21110.0,21107.0,1.26620528]
[1674220406135,0.19442568,21110.0,21107.0,1.11620528]
[1674220406136,0.52426704,21110.0,21107.0,1.11620528]
[1674220406394,0.52426704,21110.0,21107.0,0.947511]
[1674220406395,0.36771643,21109.0,21107.0,0.947511]
[1674220406686,0.19432097,21108.0,21106.0,0.17051849]
[1674220406957,0.00010471,21108.0,21107.0,0.008]
[1674220407844,0.00010471,21108.0,21106.0,0.47562121]
[1674220408119,0.00010471,21108.0,21107.0,0.158]
[1674220408338,0.36771643,21109.0,21107.0,0.32626]
[1674220408556,0.36782114,21109.0,21107.0,0.008]
[1674220409662,0.36782114,21109.0,21106.0,0.47562121]
[1674220409922,0.37582114,21109.0,21107.0,0.008]
[1674220410433,0.00023622,21108.0,21107.0,0.008]
[1674220410963,0.00023622,21108.0,21107.0,0.325735]
[1674220411224,0.00023622,21108.0,21107.0,0.467735]
[1674220411762,0.00034093,21108.0,21107.0,0.317735]
[1674220412074,0.00834093,21108.0,21107.0,0.008]
[1674220412318,0.39649922,21108.0,21107.0,0.008]
[1674220413854,1.02089411,21108.0,21107.0,0.008]
[1674220414111,1.34519711,21108.0,21107.0,0.008]
[1674220414380,1.55843459,21108.0,21107.0,0.008]
[1674220414915,1.8204179,21108.0,21106.0,0.00182421]
[1674220415178,0.477,21107.0,21106.0,0.00182421]
[1674220415441,1.7623037,21107.0,21106.0,0.00182421]
[1674220415706,1.500852,21107.0,21106.0,0.00182421]
[1674220415986,2.12606893,21107.0,21106.0,0.00182421]
[1674220416541,2.12628219,21107.0,21106.0,0.00182421]
[1674220416839,2.12628219,21107.0,21106.0,0.00282421]
[1674220416840,2.20928219,21107.0,21106.0,0.00282421]
[1674220417102,1.69717289,21107.0,21106.0,0.00282421]
[1674220417377,1.58406526,21107.0,21106.0,0.00282421]
[1674220418388,0.15,21106.0,21100.0,0.1125563]
[1674220418389,0.36470974,21106.0,21100.0,0.1125563]
[1674220418655,0.19432097,21105.0,21102.0,0.473885]
[1674220418927,0.36470974,21106.0,21103.0,0.774844]
[1674220419201,0.36470974,21106.0,21104.0,0.6732]
[1674220419468,0.38346896,21108.0,21105.0,0.612913]
[1674220419733,0.38346896,21108.0,21106.0,0.202735]
[1674220420010,0.38346896,21108.0,21107.0,0.312879]
[1674220420271,0.38346896,21108.0,21107.0,0.330433]
[1674220420534,0.38346896,21108.0,21106.0,0.473795]
[1674220421293,0.38346896,21108.0,21107.0,0.311259]
[1674220421565,0.38337101,21108.0,21106.0,0.947593]
[1674220421814,0.2263,21110.0,21106.0,0.947593]
[1674220422092,0.34755788,21109.0,21107.0,0.328389]
[1674220422363,0.084,21108.0,21107.0,0.001]
[1674220422651,0.15,21108.0,21106.0,0.947593]
[1674220422908,0.15,21108.0,21106.0,0.948593]
[1674220423196,0.15,21108.0,21106.0,0.474798]
[1674220423761,0.15,21108.0,21107.0,0.315333]
[1674220424069,0.234,21108.0,21107.0,0.001]
[1674220424378,0.15,21108.0,21105.0,0.473821]
[1674220424637,0.44109795,21107.0,21106.0,0.0085]
[1674220426770,0.52509795,21107.0,21106.0,0.0095]
[1674220428304,0.52509795,21107.0,21106.0,0.001]
[1674220428656,1.29813195,21107.0,21106.0,0.001]
[1674220428825,1.44813195,21107.0,21106.0,0.001]
[1674220429082,0.44621575,21106.0,21103.0,0.21811769]
[1674220429340,0.324409,21105.0,21102.0,0.473871]
[1674220429605,0.19432097,21105.0,21103.0,0.0085]
[1674220429866,0.59978655,21106.0,21103.0,0.0085]
[1674220430127,0.36135644,21104.0,21101.0,0.473892]
[1674220430422,0.55567741,21104.0,21100.0,0.5864813]
[1674220430688,0.55567741,21104.0,21103.0,0.005]
[1674220430960,0.36135644,21104.0,21100.0,1.2103983]
[1674220431265,0.56367741,21104.0,21101.0,0.156]
[1674220431521,0.40120884,21106.0,21104.0,0.36135644]
[1674220431799,0.40120884,21106.0,21105.0,0.191207]
[1674220432078,0.40120884,21106.0,21105.0,0.323297]
[1674220432341,0.40120884,21106.0,21104.0,0.36135644]
[1674220432624,0.550156,21108.0,21104.0,0.51135644]
[1674220432888,0.00010471,21107.0,21104.0,0.70567741]
[1674220433159,0.3545684,21107.0,21104.0,0.36135644]
[1674220434009,0.3605684,21107.0,21104.0,0.36635644]
[1674220434244,0.37413132,21106.0,21104.0,0.36635644]
[1674220435629,0.37413132,21106.0,21104.0,0.36135644]
[1674220435886,0.38013132,21106.0,21104.0,0.36635644]
[1674220437412,0.006,21106.0,21104.0,0.36635644]
[1674220438442,0.006,21106.0,21104.0,1.31402544]
[1674220438684,0.006,21106.0,21105.0,0.784578]
[1674220438928,0.006,21106.0,21105.0,1.258399]
[1674220439230,0.006,21106.0,21105.0,0.326078]
[1674220439443,0.34792155,21106.0,21105.0,0.326078]
[1674220439959,0.37992155,21106.0,21105.0,0.327078]
[1674220440215,0.038,21106.0,21105.0,0.327078]
[1674220440502,0.038,21106.0,21105.0,0.800899]
[1674220441016,0.038,21106.0,21105.0,1.27472]
[1674220441528,0.038,21106.0,21105.0,0.800899]
[1674220442546,0.038,21106.0,21105.0,0.001]
[1674220442547,0.41872222,21106.0,21105.0,0.001]
[1674220442787,0.41882693,21106.0,21105.0,0.001]
[1674220443092,0.72972293,21106.0,21105.0,0.001]
[1674220443294,0.41882693,21106.0,21105.0,0.001]
[1674220443566,0.63541384,21106.0,21105.0,0.001]
[1674220443820,0.41882693,21106.0,21105.0,0.001]
[1674220445596,0.41872222,21106.0,21105.0,0.001]
[1674220446137,0.56872222,21106.0,21105.0,0.001]
[1674220446378,0.41872222,21106.0,21105.0,0.001]
[1674220447150,0.56872222,21106.0,21105.0,0.001]
[1674220447417,0.41882693,21106.0,21105.0,0.001]
[1674220448443,0.41882693,21106.0,21105.0,0.00089537]
[1674220450238,0.41872222,21106.0,21105.0,0.00089537]
[1674220451962,0.89252022,21106.0,21105.0,0.00089537]
[1674220452510,1.04252022,21106.0,21105.0,0.00089537]
[1674220453245,1.37600522,21106.0,21105.0,0.00089537]
[1674220453546,1.04252022,21106.0,21105.0,0.00089537]
[1674220453834,1.37832993,21106.0,21105.0,0.00089537]
[1674220454317,1.04262493,21106.0,21105.0,0.00089537]
[1674220454630,1.36447093,21106.0,21105.0,0.00089537]
[1674220455077,1.63328332,21106.0,21105.0,0.00089537]
[1674220455322,2.18348132,21106.0,21105.0,0.00089537]
[1674220455852,0.56291113,21105.0,21104.0,0.10013472]
[1674220456100,1.03673213,21105.0,21104.0,0.10013472]
[1674220457401,1.04273213,21105.0,21104.0,0.10413472]
[1674220457679,0.89273213,21105.0,21104.0,0.10413472]
[1674220459204,0.41891113,21105.0,21104.0,0.10413472]
[1674220460812,0.006,21105.0,21104.0,0.10413472]
[1674220461106,0.006,21105.0,21104.0,0.43795972]
[1674220461371,0.41718758,21105.0,21104.0,0.43795972]
[1674220461653,0.41718758,21105.0,21104.0,0.10413472]
[1674220464259,0.41729229,21105.0,21104.0,0.10413472]
[1674220466631,0.56718758,21105.0,21104.0,0.10413472]
[1674220467155,0.41718758,21105.0,21104.0,0.10413472]
[1674220467412,0.41729229,21105.0,21104.0,0.10413472]
[1674220467931,0.41718758,21105.0,21104.0,0.10413472]
[1674220468190,0.41729229,21105.0,21104.0,0.10413472]
[1674220468948,0.89390129,21105.0,21104.0,0.10413472]
[1674220469712,0.74390129,21105.0,21104.0,0.10413472]
[1674220470318,0.41729229,21105.0,21104.0,0.10413472]
[1674220471471,0.41718758,21105.0,21104.0,0.10413472]
[1674220472532,0.41729229,21105.0,21104.0,0.10413472]
[1674220473052,0.56729229,21105.0,21104.0,0.10413472]
[1674220473857,0.75084758,21105.0,21104.0,0.10413472]
[1674220474348,0.41718758,21105.0,21104.0,0.10413472]
[1674220475685,0.41729229,21105.0,21104.0,0.10413472]
[1674220475952,0.41718758,21105.0,21104.0,0.10413472]
[1674220478649,0.41729229,21105.0,21104.0,0.10413472]
[1674220479189,0.41718758,21105.0,21104.0,0.57797772]
[1674220479460,0.006,21105.0,21104.0,0.57797772]
[1674220479729,0.006,21105.0,21104.0,0.10413472]
[1674220479730,0.00592169,21105.0,21104.0,0.10413472]
[1674220480541,0.15,21107.0,21104.0,0.21669102]
[1674220480836,1.097526,21108.0,21105.0,0.325919]
[1674220480837,0.33825418,21108.0,21105.0,0.325919]
[1674220481107,0.33825418,21108.0,21106.0,0.198228]
[1674220481378,0.33825418,21108.0,21107.0,0.317386]
[1674220481650,0.33835889,21108.0,21105.0,0.0085]
[1674220481913,0.006,21107.0,21105.0,0.0085]
[1674220482224,0.15,21109.0,21105.0,0.482318]
[1674220482530,0.081,21108.0,21106.0,0.339727]
[1674220482798,0.081,21108.0,21107.0,0.176892]
[1674220483073,0.081,21108.0,21107.0,0.317729]
[1674220483329,0.081,21108.0,21105.0,0.67663897]
[1674220483681,0.035,21107.0,21105.0,0.483318]
[1674220483935,0.52423608,21109.0,21105.0,0.482318]
[1674220484199,0.082,21108.0,21107.0,0.001]
[1674220484983,0.52434079,21109.0,21105.0,0.67763897]
[1674220485282,0.52434079,21109.0,21105.0,0.482318]
[1674220485547,0.52434079,21109.0,21107.0,0.001]
[1674220485548,0.082,21108.0,21107.0,0.001]
[1674220486363,0.52434079,21109.0,21105.0,0.482318]
[1674220486635,0.55923608,21109.0,21105.0,0.483318]
[1674220486933,0.38996988,21108.0,21105.0,0.482318]
[1674220487206,0.47196988,21108.0,21107.0,0.001]
[1674220487477,0.38996988,21108.0,21105.0,0.482318]
[1674220487725,0.60684937,21107.0,21105.0,0.482318]
[1674220488274,0.60684937,21107.0,21105.0,0.491318]
[1674220489087,0.45684937,21107.0,21105.0,0.965139]
[1674220489333,0.45684937,21107.0,21106.0,0.342404]
[1674220489598,0.45684937,21107.0,21105.0,0.956139]
[1674220489943,0.006,21107.0,21105.0,0.965139]
[1674220490122,0.3431049,21107.0,21106.0,0.315584]
[1674220490376,0.3781049,21107.0,21106.0,0.001]